bitfinex/quotes_SOLUSD_20250704
["timestamp","ask_amount","ask_price","bid_price","bid_amount"]
[1751608065186,6.7155069,153.48,153.46,6.12020044]
[1751608066286,6.7155069,153.48,153.45,6.12020044]
[1751608077498,6.7155069,153.48,153.46,6.12020044]
[1751608077996,0.2,153.48,153.47,6.12020044]
[1751608082199,0.2,153.48,153.47,31.28578075]
[1751608083974,0.2,153.48,153.47,24.7698493]
[1751608084175,0.2,153.48,153.47,6.12020044]
[1751608088112,0.2,153.48,153.45,51.16641038]
[1751608088292,0.2,153.48,153.43,0.1]
[1751608088293,6.12020044,153.46,153.43,0.1]
[1751608088604,12.52472402,153.44,153.43,1e-08]
[1751608088781,0.28432314,153.44,153.43,1e-08]
[1751608088987,12.52472402,153.44,153.43,1e-08]
[1751608089606,19.04192944,153.44,153.43,1e-08]
[1751608096693,12.921729,153.44,153.43,1e-08]
[1751608098720,6.80152856,153.44,153.43,1e-08]
[1751608099031,12.921729,153.44,153.43,1e-08]
[1751608102196,19.04192944,153.44,153.43,1e-08]
[1751608104305,6.40452358,153.39,153.38,0.1]
[1751608104626,6.40452358,153.39,153.38,1e-08]
[1751608105423,12.92385339,153.39,153.38,1e-08]
[1751608107227,27.6487,153.37,153.36,1e-08]
[1751608107548,0.28432314,153.36,153.34,1e-08]
[1751608107706,6.12020044,153.35,153.34,1e-08]
[1751608108525,26.0,153.32,153.31,0.1]
[1751608108719,65.54452358,153.32,153.31,1e-08]
[1751608109430,72.06682986,153.32,153.31,1e-08]
[1751608120953,20.559572,153.31,153.27,1e-08]
[1751608121129,38.52472402,153.28,153.27,1e-08]
[1751608121450,71.68472402,153.28,153.27,1e-08]
[1751608123034,78.20873237,153.28,153.27,1e-08]
[1751608123240,32.12020044,153.25,153.24,1e-08]
[1751608123436,65.28020044,153.25,153.24,1e-08]
[1751608125085,65.68528548,153.25,153.24,1e-08]
[1751608125228,72.08980906,153.25,153.24,1e-08]
[1751608128239,72.08980906,153.25,153.2,0.1]
[1751608128240,0.28432314,153.24,153.2,0.1]
[1751608128552,6.40452358,153.21,153.2,0.1]
[1751608128734,39.28020044,153.21,153.2,0.1]
[1751608129136,45.80718953,153.21,153.2,0.1]
[1751608140671,0.28432314,153.2,153.19,0.1]
[1751608140963,6.40452358,153.2,153.19,0.1]
[1751608141274,29.25047657,153.2,153.17,0.1]
[1751608141579,6.40452358,153.18,153.17,0.1]
[1751608141742,6.12020044,153.16,153.15,0.2]
[1751608141941,39.30020044,153.16,153.15,0.2]
[1751608142242,65.58452358,153.16,153.13,0.1]
[1751608142590,6.12020044,153.14,153.13,0.1]
[1751608142863,39.30020044,153.14,153.13,0.1]
[1751608143065,45.83017301,153.14,153.13,0.1]
[1751608143274,46.11449615,153.14,153.13,0.1]
[1751608144791,46.11449615,153.14,153.13,1e-08]
[1751608144970,72.11449615,153.14,153.13,1e-08]
[1751608145776,37.70434545,153.14,153.13,1e-08]
[1751608146080,72.13449615,153.14,153.13,1e-08]
[1751608146284,70.90434545,153.14,153.13,1e-08]
[1751608146499,64.78414501,153.14,153.13,1e-08]
[1751608147064,72.17449615,153.14,153.13,1e-08]
[1751608147675,96.94434545,153.14,153.13,1e-08]
[1751608147995,90.82414501,153.14,153.13,1e-08]
[1751608148664,72.17449615,153.14,153.13,1e-08]
[1751608149179,52.29469659,153.14,153.13,1e-08]
[1751608149688,70.94434545,153.14,153.13,1e-08]
[1751608150674,6.12020044,153.1,153.03,1.537]
[1751608150883,27.5287,153.11,153.02,7.9857647]
[1751608150884,6.12020044,153.05,153.02,7.9857647]
[1751608151072,6.12020044,153.04,153.02,1.3718647]
[1751608151391,172.4,153.11,153.03,12.53290044]
[1751608151590,146.4,153.11,153.08,6.12020044]
[1751608151901,39.42020044,153.13,153.08,6.12020044]
[1751608152267,6.12020044,153.12,153.08,6.12020044]
[1751608152768,12.65102593,153.12,153.08,6.12020044]
[1751608153186,12.65102593,153.12,153.06,0.1]
[1751608153494,12.65102593,153.12,153.08,6.12020044]
[1751608156372,12.65102593,153.12,153.07,6.12020044]
[1751608156572,12.65102593,153.12,153.08,6.12020044]
[1751608157067,12.65102593,153.12,153.06,0.1]
[1751608157274,6.53167864,153.1,153.07,6.12020044]
[1751608158296,6.53167864,153.1,153.06,0.1]
[1751608158591,6.53167864,153.1,153.07,6.12020044]
[1751608159087,6.53137534,153.11,153.06,0.1]
[1751608159287,6.12020044,153.13,153.09,6.12020044]
[1751608159592,6.12020044,153.15,153.11,6.12020044]
[1751608160081,6.12020044,153.15,153.1,6.12020044]
[1751608160474,6.52998921,153.14,153.1,6.12020044]
[1751608160670,12.65018965,153.14,153.08,6.5323483]
[1751608161075,6.12020044,153.13,153.09,6.12020044]
[1751608162194,6.53082549,153.12,153.09,6.12020044]
[1751608163302,6.53082549,153.12,153.07,6.53285666]
[1751608163489,6.53082549,153.12,153.09,6.12020044]
[1751608166088,6.53082549,153.12,153.07,6.53285666]
[1751608166288,6.53082549,153.12,153.09,6.12020044]
[1751608170202,6.52997257,153.14,153.08,6.6323]
[1751608170497,6.52997257,153.14,153.11,6.12020044]
[1751608171390,6.52997257,153.14,153.09,6.53200242]
[1751608171593,6.52997257,153.14,153.11,6.12020044]
[1751608173585,6.52997257,153.14,153.1,6.12020044]
[1751608173894,12.65017301,153.14,153.1,6.12020044]
[1751608174213,6.52997257,153.14,153.08,13.26470048]
[1751608174501,12.85017301,153.14,153.1,6.12020044]
[1751608175780,6.72997257,153.14,153.1,6.12020044]
[1751608179211,6.72997257,153.14,153.11,6.12020044]
[1751608179579,0.2,153.14,153.09,6.5320312]
[1751608179784,0.2,153.14,153.11,6.12020044]
[1751608179984,0.2,153.14,153.09,6.5320312]
[1751608180305,0.2,153.14,153.12,6.12020044]
[1751608180501,6.73005844,153.14,153.11,6.12020044]
[1751608181607,6.73005844,153.14,153.08,13.26465568]
[1751608181910,6.73005844,153.14,153.1,6.12020044]
[1751608182114,6.73005844,153.14,153.11,6.12020044]
[1751608183214,12.85025888,153.14,153.1,6.12020044]
[1751608183511,6.12020044,153.12,153.08,0.1]
[1751608183691,6.12020044,153.12,153.08,6.22020044]
[1751608183891,23.05498987,153.14,153.09,6.12020044]
[1751608183892,6.12020044,153.13,153.09,6.12020044]
[1751608184124,23.05498987,153.14,153.09,6.12020044]
[1751608184307,0.2,153.14,153.12,6.12020044]
[1751608185830,0.2,153.14,153.08,6.63248245]
[1751608186127,0.2,153.14,153.12,6.12020044]
[1751608187924,0.2,153.14,153.08,6.63248245]
[1751608188109,0.2,153.14,153.12,6.12020044]
[1751608189945,0.2,153.14,153.13,6.12020044]
[1751608190143,0.2,153.14,153.13,12.65059944]
[1751608190741,0.2,153.14,153.1,12.56952973]
[1751608190947,0.2,153.14,153.12,6.12020044]
[1751608191549,6.73001574,153.14,153.12,6.12020044]
[1751608195445,6.73001574,153.14,153.08,0.1]
[1751608195446,23.05494717,153.14,153.08,0.1]
[1751608195620,6.12020044,153.12,153.08,0.1]
[1751608195815,6.12020044,153.12,153.08,6.22020044]
[1751608196023,6.12020044,153.13,153.08,6.22020044]
[1751608196222,6.12020044,153.13,153.09,6.12020044]
[1751608197434,6.12020044,153.12,153.08,0.1]
[1751608197755,12.65100909,153.13,153.08,6.22020044]
[1751608197960,6.53080865,153.13,153.09,6.12020044]
[1751608198256,8.31685295,153.14,153.1,6.12020044]
[1751608199354,8.31685295,153.14,153.08,6.22020044]
[1751608199355,6.12020044,153.12,153.08,6.22020044]
[1751608199643,24.64178438,153.14,153.09,6.12020044]
[1751608199850,6.12020044,153.11,153.08,0.1]
[1751608200063,6.12020044,153.1,153.08,0.1]
[1751608200237,6.12020044,153.11,153.08,0.1]
[1751608200436,6.12020044,153.12,153.08,0.1]
[1751608201657,6.12020044,153.1,153.08,0.1]
[1751608203163,6.53125204,153.11,153.08,0.1]
[1751608203543,12.65145248,153.11,153.08,0.1]
[1751608204355,6.53125204,153.11,153.08,6.22020044]
[1751608206155,6.53125204,153.11,153.08,0.1]
[1751608206545,12.65145248,153.11,153.08,0.1]
[1751608207551,6.53125204,153.11,153.08,0.1]
[1751608207741,12.65145248,153.11,153.08,0.1]
[1751608208060,6.53125204,153.11,153.08,0.1]
[1751608208436,6.53125204,153.11,153.08,6.22020044]
[1751608209654,6.53125204,153.11,153.08,0.1]
[1751608209854,6.53125204,153.11,153.08,6.22020044]
[1751608210056,0.2,153.12,153.1,6.12020044]
[1751608210265,0.2,153.12,153.11,6.12020044]
[1751608211930,0.2,153.12,153.11,19.05597606]
[1751608212535,0.2,153.14,153.11,61.38410616]
[1751608212754,0.2,153.14,153.13,6.40452358]
[1751608214066,0.2,153.14,153.13,12.93492258]
[1751608214633,0.2,153.14,153.13,6.81472214]
[1751608214842,0.2,153.14,153.13,6.12020044]
[1751608217559,0.2,153.14,153.13,12.65059944]
[1751608219255,0.2,153.14,153.13,12.93492258]
[1751608227960,0.2,153.14,153.13,6.40452358]
[1751608229187,0.2,153.14,153.13,0.28432314]
[1751608229558,0.2,153.14,153.13,6.12020044]
[1751608249397,0.2,153.14,153.13,12.93492258]
[1751608249618,0.2,153.14,153.13,6.40452358]
[1751608249902,0.2,153.14,153.13,4.21680502]
[1751608253888,0.2,153.14,153.13,6.42965649]
[1751608255385,0.2,153.14,153.13,0.28432314]
[1751608255589,0.2,153.14,153.13,6.14533335]
[1751608257823,6.72998987,153.14,153.12,6.24533335]
[1751608257989,0.2,153.14,153.12,6.24533335]
[1751608258812,0.2,153.14,153.13,6.14533335]
[1751608267744,6.73006598,153.14,153.12,0.1]
[1751608268519,6.73006598,153.14,153.12,6.24533335]
[1751608271431,6.14533335,153.13,153.12,0.1]
[1751608271716,5.90881536,153.12,153.08,0.1]
[1751608271898,6.14533335,153.09,153.08,0.1]
[1751608272795,12.67743864,153.09,153.08,0.1]
[1751608279128,6.53167864,153.1,153.08,0.1]
[1751608279334,1.6346,153.13,153.09,6.14533335]
[1751608279639,8.16515008,153.13,153.1,6.14533335]
[1751608281211,6.53055008,153.13,153.1,6.14533335]
[1751608281415,6.53055008,153.13,153.09,6.14533335]
[1751608281622,6.53055008,153.13,153.1,6.14533335]
[1751608283531,6.53055008,153.13,153.08,0.1]
[1751608283838,6.53055008,153.13,153.1,6.14533335]
[1751608285136,6.53055008,153.13,153.08,0.38432314]
[1751608285323,6.53055008,153.13,153.1,6.14533335]
[1751608287230,29.00188094,153.13,153.08,0.38432314]
[1751608287535,6.14533335,153.09,153.08,0.1]
[1751608287714,6.14533335,153.1,153.08,0.1]
[1751608289638,6.53210529,153.09,153.08,0.1]
[1751608293034,6.53167864,153.1,153.08,0.1]
[1751608293840,12.67701199,153.1,153.08,0.1]
[1751608294854,6.53167864,153.1,153.08,0.1]
[1751608295028,12.67701199,153.1,153.08,0.1]
[1751608307831,6.14533335,153.09,153.08,0.1]
[1751608308956,6.53210529,153.09,153.08,0.1]
[1751608309264,6.53135955,153.11,153.08,6.24533335]
[1751608309442,6.53135955,153.11,153.09,6.14533335]
[1751608309757,0.2,153.12,153.1,6.14533335]
[1751608309956,0.2,153.12,153.11,6.14533335]
[1751608317367,0.2,153.12,153.11,12.67658539]
[1751608317747,0.2,153.12,153.11,12.96090853]
[1751608322369,0.2,153.12,153.11,6.81557518]
[1751608322667,0.2,153.12,153.11,12.96090853]
[1751608323165,0.2,153.12,153.11,19.10624188]
[1751608323372,0.2,153.12,153.11,45.10624188]
[1751608326959,0.2,153.12,153.11,38.96090853]
[1751608327761,0.2,153.12,153.11,32.81557518]
[1751608327963,0.2,153.12,153.11,38.96090853]
[1751608328468,0.2,153.12,153.11,45.10624188]
[1751608328673,0.2,153.14,153.13,32.42965649]
[1751608328869,0.2,153.19,153.14,0.28432314]
[1751608329075,0.2,153.19,153.18,6.14533335]
[1751608330478,0.2,153.19,153.17,6.14533335]
[1751608332381,6.14533335,153.18,153.14,6.14533335]
[1751608332878,6.14533335,153.18,153.13,6.14533335]
[1751608333083,1.7842,153.19,153.17,6.14533335]
[1751608333283,0.2,153.19,153.17,6.14533335]
[1751608333650,0.2,153.19,153.18,6.14533335]
[1751608336572,0.2,153.19,153.18,12.67360074]
[1751608336976,0.2,153.19,153.18,6.14533335]
[1751608341781,0.2,153.19,153.18,6.42965649]
[1751608343591,0.2,153.19,153.18,12.95792388]
[1751608343797,0.2,153.19,153.18,16.23819826]
[1751608344778,0.2,153.19,153.18,6.42965649]
[1751608345189,0.2,153.19,153.18,12.95792388]
[1751608346493,0.2,153.19,153.18,6.42965649]
[1751608347107,0.2,153.19,153.18,12.95792388]
[1751608348209,0.2,153.19,153.18,6.42965649]
[1751608348875,6.72794124,153.19,153.16,6.14533335]
[1751608349075,0.2,153.19,153.16,6.14533335]
[1751608352189,6.72794385,153.19,153.16,6.14533335]
[1751608353303,6.72794385,153.19,153.15,6.14533335]
[1751608353487,12.8732772,153.19,153.13,13.69453683]
[1751608353692,6.14533335,153.16,153.13,6.88]
[1751608354001,6.14533335,153.15,153.1,6.14533335]
[1751608355111,12.6752562,153.15,153.1,6.14533335]
[1751608356709,6.14533335,153.14,153.1,0.28432314]
[1751608356905,6.14533335,153.14,153.1,6.42965649]
[1751608357404,12.67570505,153.14,153.1,0.28432314]
[1751608358084,12.67570505,153.14,153.1,6.42965649]
[1751608358594,12.67570505,153.14,153.1,6.52965649]
[1751608359805,12.67570505,153.14,153.1,0.1]
[1751608360014,12.67570505,153.14,153.1,6.24533335]
[1751608361007,6.52954619,153.15,153.1,0.1]
[1751608361310,6.52954619,153.15,153.12,6.14533335]
[1751608362496,6.52954619,153.15,153.11,6.42965649]
[1751608363617,14.31237224,153.16,153.12,6.14533335]
[1751608364101,8.16703889,153.16,153.12,6.14533335]
[1751608364915,14.31237224,153.16,153.11,0.28432314]
[1751608365114,14.31237224,153.16,153.12,6.14533335]
[1751608367021,14.31237224,153.16,153.11,0.28432314]
[1751608367199,14.31237224,153.16,153.12,6.14533335]
[1751608371330,14.31237224,153.16,153.11,6.42965649]
[1751608373915,8.16703889,153.16,153.11,6.42965649]
[1751608374116,14.31237224,153.16,153.11,6.42965649]
[1751608374616,14.31237224,153.16,153.11,6.52965649]
[1751608375128,14.51237224,153.16,153.11,6.52965649]
[1751608376432,12.67519872,153.15,153.11,6.52965649]
[1751608376826,6.52986537,153.15,153.11,6.52965649]
[1751608377034,12.67519872,153.15,153.11,6.52965649]
[1751608377828,6.14533335,153.13,153.11,0.1]
[1751608378024,6.52986537,153.15,153.11,0.1]
[1751608378025,6.14533335,153.14,153.11,0.1]
[1751608378210,12.67519872,153.15,153.11,0.1]
[1751608378627,6.52986537,153.15,153.11,6.24533335]
[1751608379630,14.51239635,153.16,153.11,6.63111946]
[1751608379833,14.51239635,153.16,153.12,6.14533335]
[1751608380410,0.2,153.16,153.15,6.14533335]
[1751608384331,0.2,153.16,153.12,6.28749492]
[1751608384511,6.72918944,153.16,153.12,6.14533335]
[1751608387119,6.72918944,153.16,153.13,6.14533335]
[1751608392036,6.72918944,153.16,153.13,6.24533335]
[1751608393946,0.2,153.16,153.13,6.24533335]
[1751608400154,0.2,153.16,153.13,0.1]
[1751608400450,6.72917186,153.16,153.13,6.24533335]
[1751608401051,0.2,153.16,153.13,6.24533335]
[1751608401748,0.2,153.16,153.13,0.1]
[1751608402256,0.2,153.16,153.13,6.24533335]
[1751608403651,0.2,153.16,153.13,12.7756966]
[1751608403858,0.2,153.16,153.13,6.24533335]
[1751608405162,0.2,153.16,153.13,0.1]
[1751608405337,0.2,153.16,153.13,6.24533335]
[1751608409856,0.2,153.16,153.13,4.0338953]
[1751608414163,6.72916248,153.16,153.13,4.0338953]
[1751608415058,6.72916248,153.16,153.13,0.1]
[1751608415358,3.9338953,153.14,153.13,0.1]
[1751608416138,6.52997257,153.14,153.13,0.1]
[1751608417561,10.46386787,153.14,153.13,0.1]
[1751608417754,12.68113167,153.14,153.13,0.1]
[1751608421151,12.68113167,153.14,153.13,0.1]
[1751608422167,6.52997257,153.14,153.13,0.1]
[1751608424549,14.18136368,153.15,153.13,0.1]
[1751608428269,1.5005,153.15,153.13,0.1]
[1751608428481,0.2,153.16,153.13,6.2511591]
[1751608428656,6.72913448,153.16,153.13,6.2511591]
[1751608428975,0.2,153.16,153.14,6.1511591]
[1751608429775,0.2,153.16,153.13,6.2511591]
[1751608439266,0.2,153.16,153.14,6.1511591]
[1751608439751,0.2,153.16,153.14,3.93327464]
[1751608440881,0.2,153.16,153.15,3.93327464]
[1751608447292,0.2,153.16,153.13,0.1]
[1751608447593,0.2,153.16,153.13,10.56367037]
[1751608447793,0.2,153.16,153.14,3.93327464]
[1751608448889,0.2,153.16,153.15,3.93327464]
[1751608449193,0.2,153.16,153.15,4.21759778]
[1751608449375,0.2,153.16,153.15,10.74714397]
[1751608450485,0.2,153.16,153.15,0.28432314]
[1751608450669,0.2,153.16,153.15,4.21759778]
[1751608451368,0.2,153.16,153.15,3.93327464]
[1751608452902,6.72920432,153.16,153.13,0.1]
[1751608453095,10.66247896,153.16,153.13,0.1]
[1751608453470,3.93327464,153.14,153.13,0.1]
[1751608454171,6.72920432,153.16,153.13,0.1]
[1751608454364,3.93327464,153.14,153.13,0.1]
[1751608454893,10.46324721,153.14,153.13,0.1]
[1751608455889,12.67955589,153.14,153.13,0.1]
[1751608460401,6.14958332,153.14,153.13,0.1]
[1751608460578,6.52954619,153.15,153.13,0.1]
[1751608460778,6.14958332,153.14,153.13,0.1]
[1751608463598,12.67955589,153.14,153.13,0.1]
[1751608470509,6.52954619,153.15,153.13,0.1]
[1751608470700,6.14958332,153.14,153.13,0.1]
[1751608471612,12.67955589,153.14,153.13,0.1]
[1751608475814,10.46546565,153.14,153.13,0.1]
[1751608477513,6.52954619,153.15,153.13,0.1]
[1751608477720,10.46503927,153.15,153.13,0.1]
[1751608478012,0.2,153.14,153.13,0.1]
[1751608484521,10.66546565,153.14,153.13,0.1]
[1751608484697,6.72997257,153.14,153.13,0.1]
[1751608486035,6.72997257,153.14,153.13,4.03549308]
[1751608486036,0.2,153.14,153.13,4.03549308]
[1751608486195,0.2,153.14,153.13,0.1]
[1751608500931,6.72997257,153.14,153.13,0.1]
[1751608510546,0.2,153.14,153.13,0.1]
[1751608512646,6.72997257,153.14,153.13,0.1]
[1751608521140,10.66546565,153.14,153.13,0.1]
[1751608521627,6.0777,153.13,153.11,0.1]
[1751608521826,45.6774654,153.12,153.11,0.1]
[1751608522033,29.93549308,153.12,153.11,0.1]
[1751608522226,26.0,153.12,153.11,0.1]
[1751608522625,8.24367257,153.14,153.11,0.1]
[1751608522847,12.17916565,153.14,153.11,0.1]
[1751608523341,3.93549308,153.13,153.11,0.1]
[1751608523530,12.17916565,153.14,153.11,0.1]
[1751608524422,8.24367257,153.14,153.11,0.1]
[1751608524616,12.17916565,153.14,153.11,0.1]
[1751608525343,8.24367257,153.14,153.11,0.1]
[1751608525541,12.17916565,153.14,153.11,0.1]
[1751608526952,8.24367257,153.14,153.11,0.1]
[1751608527146,12.17916565,153.14,153.11,0.1]
[1751608529145,0.2,153.14,153.13,4.21981622]
[1751608532551,0.2,153.14,153.13,10.75021522]
[1751608534128,0.2,153.14,153.13,36.75021522]
[1751608534347,0.2,153.16,153.14,27.94962314]
[1751608534544,0.2,153.16,153.15,4.21981622]
[1751608535351,0.2,153.19,153.15,4.21981622]
[1751608535552,0.2,153.19,153.18,30.21981622]
[1751608536049,0.2,153.19,153.18,36.74808361]
[1751608537854,0.2,153.19,153.18,38.95256076]
[1751608547255,0.2,153.23,153.19,0.28432314]
[1751608547452,0.2,153.23,153.2,38.5642636]
[1751608549353,0.2,153.23,153.2,45.09167874]
[1751608550471,0.2,153.23,153.21,0.28432314]
[1751608550658,0.2,153.23,153.21,46.66429337]
[1751608551276,0.2,153.23,153.22,6.81088625]
[1751608551471,0.2,153.23,153.22,12.95085648]
[1751608552256,0.2,153.23,153.22,6.81088625]
[1751608552455,0.2,153.23,153.22,12.95085648]
[1751608557176,0.2,153.23,153.22,52.19085648]
[1751608557481,0.2,153.23,153.22,12.95085648]
[1751608560579,0.2,153.23,153.22,32.81088625]
[1751608560760,0.2,153.23,153.22,38.95085648]
[1751608565496,0.2,153.23,153.22,32.13997023]
[1751608565798,12.86629629,153.23,153.18,0.1]
[1751608565965,6.13997023,153.21,153.18,0.1]
[1751608566168,6.2916,153.22,153.18,0.1]
[1751608566482,6.13997023,153.21,153.18,0.1]
[1751608566786,1.578,153.19,153.18,0.1]
[1751608566988,7.71797023,153.19,153.18,0.1]
[1751608567570,14.24581147,153.19,153.18,0.1]
[1751608569063,8.10584124,153.19,153.18,0.1]
[1751608569367,14.24581147,153.19,153.18,0.1]
[1751608569765,30.56541457,153.19,153.13,0.1]
[1751608569986,6.13997023,153.16,153.13,0.1]
[1751608570185,24.42544434,153.19,153.13,0.1]
[1751608570492,6.13997023,153.16,153.13,0.1]
[1751608571692,6.52954619,153.15,153.13,0.1]
[1751608572696,6.52917917,153.16,153.13,0.1]
[1751608572872,17.8976031,153.19,153.13,6.23997023]
[1751608573190,12.66823762,153.18,153.14,6.13997023]
[1751608573693,6.52826739,153.18,153.14,6.13997023]
[1751608573900,1.578,153.19,153.16,6.13997023]
[1751608574105,1.578,153.19,153.17,6.13997023]
[1751608577493,8.10599732,153.19,153.17,6.13997023]
[1751608577672,1.578,153.19,153.14,6.52995908]
[1751608577994,1.578,153.19,153.17,6.13997023]
[1751608580498,6.2916,153.22,153.18,6.13997023]
[1751608581196,6.52673105,153.22,153.18,6.13997023]
[1751608585491,12.66670128,153.22,153.18,6.13997023]
[1751608586604,6.13997023,153.19,153.16,0.1]
[1751608586784,6.13997023,153.18,153.16,0.1]
[1751608587508,7.66607023,153.17,153.13,0.1]
[1751608587800,6.13997023,153.14,153.13,1e-08]
[1751608588012,32.13997023,153.14,153.13,1e-08]
[1751608588192,32.84788803,153.14,153.13,1e-08]
[1751608588506,26.0,153.14,153.13,1e-08]
[1751608588706,32.13997023,153.14,153.13,1e-08]
[1751608588883,26.0,153.14,153.13,1e-08]
[1751608589205,32.13997023,153.14,153.13,1e-08]
[1751608589714,38.6699428,153.14,153.13,1e-08]
[1751608590291,32.52997257,153.14,153.13,1e-08]
[1751608590505,38.6699428,153.14,153.13,1e-08]
[1751608591614,12.6699428,153.14,153.13,1e-08]
[1751608592513,6.52954619,153.15,153.13,1e-08]
[1751608592700,6.13997023,153.14,153.13,1e-08]
[1751608594406,6.60925312,153.15,153.13,1e-08]
[1751608594611,6.13997023,153.14,153.13,1e-08]
[1751608594992,6.60925312,153.15,153.13,1e-08]
[1751608595206,12.6699428,153.14,153.13,1e-08]
[1751608596210,6.52997257,153.14,153.13,1e-08]
[1751608596402,12.6699428,153.14,153.13,1e-08]
[1751608596916,12.6699428,153.14,153.1,1e-08]
[1751608596917,27.5277,153.11,153.1,1e-08]
[1751608597097,33.66767023,153.11,153.1,1e-08]
[1751608597413,34.2548724,153.11,153.1,1e-08]
[1751608597615,33.66767023,153.11,153.1,1e-08]
[1751608598894,81.26212227,153.11,153.1,1e-08]
[1751608599099,106.18173842,153.11,153.08,0.1]
[1751608599403,6.13997023,153.09,153.08,0.1]
[1751608599802,6.13997023,153.09,153.08,1e-08]
[1751608600309,100.04176819,153.11,153.06,0.1]
[1751608600310,26.0,153.07,153.06,0.1]
[1751608600515,34.76,153.08,153.06,0.1]
[1751608600716,6.13997023,153.07,153.06,0.1]
[1751608601297,6.532532,153.08,153.06,0.1]
[1751608601521,6.13997023,153.07,153.06,0.1]
[1751608602231,6.532532,153.08,153.06,0.1]
[1751608602613,6.13997023,153.07,153.06,0.1]
[1751608603222,6.532532,153.08,153.06,0.1]
[1751608603223,12.67250223,153.08,153.06,0.1]
[1751608603733,6.532532,153.08,153.06,0.1]
[1751608606846,12.67250223,153.08,153.06,0.1]
[1751608607043,6.53167864,153.1,153.07,6.13997023]
[1751608608338,6.53167864,153.1,153.06,0.1]
[1751608608339,6.33997023,153.14,153.09,6.13997023]
[1751608608538,6.33997023,153.14,153.06,0.1]
[1751608608539,6.33997023,153.14,153.1,6.13997023]
[1751608608912,0.2,153.14,153.1,6.13997023]
[1751608609137,6.530399,153.13,153.1,6.13997023]
[1751608609438,6.530399,153.13,153.1,6.0602633]
[1751608611128,12.67036923,153.13,153.06,0.1]
[1751608611440,6.13997023,153.12,153.08,6.13997023]
[1751608611614,12.67036923,153.13,153.08,6.13997023]
[1751608611812,6.13997023,153.12,153.06,0.1]
[1751608612013,6.13997023,153.12,153.07,6.13997023]
[1751608612225,6.13997023,153.12,153.06,0.1]
[1751608612437,1.5923,153.08,153.06,1e-08]
[1751608612639,6.13997023,153.07,153.06,1e-08]
[1751608612842,9.89946291,153.08,153.06,1e-08]
[1751608613016,6.13997023,153.07,153.06,1e-08]
[1751608613220,6.53295877,153.07,153.06,1e-08]
[1751608613418,12.672929,153.07,153.06,1e-08]
[1751608614040,15.76665195,153.07,153.06,1e-08]
[1751608617222,6.53295877,153.07,153.06,1e-08]
[1751608617544,15.76665195,153.07,153.06,1e-08]
[1751608620151,6.53295877,153.07,153.06,1e-08]
[1751608620445,15.76665195,153.07,153.06,1e-08]
[1751608621330,6.53295877,153.07,153.06,1e-08]
[1751608621543,1.5309,153.12,153.06,9.23369319]
[1751608621715,6.53082549,153.12,153.08,9.23369318]
[1751608621920,32.09158241,153.12,153.07,9.23369318]
[1751608622115,22.85788923,153.12,153.08,9.23369318]
[1751608622626,32.09158241,153.12,153.08,9.23369318]
[1751608622824,22.85788923,153.12,153.08,9.23369318]
[1751608623347,32.09158241,153.12,153.08,9.23369318]
[1751608623645,16.32706374,153.12,153.08,9.23369318]
[1751608623844,25.56075692,153.12,153.08,9.23369318]
[1751608624031,9.23369318,153.11,153.06,1e-08]
[1751608624344,9.23369318,153.11,153.07,9.23369318]
[1751608624543,16.32706374,153.12,153.07,9.23369318]
[1751608624952,9.23369318,153.11,153.07,9.23369318]
[1751608626353,6.53167864,153.1,153.07,9.23369318]
[1751608628080,6.53167864,153.1,153.08,9.23369318]
[1751608629150,6.53125204,153.11,153.08,9.23369318]
[1751608629648,6.53125204,153.11,153.06,1e-08]
[1751608629954,6.53125204,153.11,153.08,9.23369318]
[1751608630430,6.53125204,153.11,153.09,9.23369318]
[1751608630633,6.53125204,153.11,153.08,9.23369318]
[1751608633542,9.23369318,153.12,153.08,9.23369318]
[1751608633856,6.15097418,153.12,153.08,6.15097418]
[1751608634054,22.85647687,153.13,153.08,6.15097418]
[1751608634673,6.530399,153.13,153.06,6.81759764]